bitfinex/quotes_SOLUSD_20220129
["timestamp","ask_amount","ask_price","bid_price","bid_amount"]
[1643476861927,15.14,94.65,94.578,128.2172]
[1643476863225,15.14,94.65,94.579,0.25]
[1643476867431,15.14,94.65,94.589,105.6]
[1643476867831,15.14,94.65,94.59,0.25]
[1643476868664,45.58237004,94.658,94.59,0.25]
[1643476868865,45.58237004,94.658,94.59,23.6154]
[1643476869260,24.2896,94.659,94.59,23.6154]
[1643476869461,24.2896,94.659,94.591,105.6]
[1643476869772,24.2896,94.659,94.592,0.25]
[1643476870967,15.14,94.67,94.592,63.57]
[1643476871172,23.8413,94.698,94.602,174.92]
[1643476871362,23.8413,94.698,94.603,47.0263]
[1643476871569,23.8413,94.698,94.613,6.0]
[1643476871763,23.8413,94.698,94.614,0.25]
[1643476871963,23.8413,94.698,94.614,28.9822]
[1643476872162,23.8413,94.698,94.615,105.6]
[1643476872366,23.8413,94.698,94.616,0.25]
[1643476872562,23.8413,94.698,94.625,6.0]
[1643476872762,23.8413,94.698,94.626,22.9822]
[1643476873166,23.8413,94.698,94.636,6.0]
[1643476873468,23.8413,94.698,94.637,0.25]
[1643476873865,23.8413,94.698,94.637,6.25]
[1643476874068,23.8413,94.698,94.637,111.85]
[1643476874265,23.8413,94.698,94.637,6.25]
[1643476874467,23.8413,94.698,94.637,111.85]
[1643476874668,23.8413,94.698,94.637,105.85]
[1643476874870,23.8413,94.698,94.637,0.25]
[1643476875670,33.1515553,94.697,94.637,0.25]
[1643476876473,23.8413,94.698,94.628,0.25]
[1643476877474,23.8413,94.698,94.637,111.6]
[1643476877672,23.8413,94.698,94.637,105.6]
[1643476877872,23.8413,94.698,94.638,0.25]
[1643476878872,23.8413,94.698,94.637,6.25]
[1643476879474,23.8413,94.698,94.637,0.25]
[1643476881076,23.8413,94.698,94.637,6.25]
[1643476881275,52.02677342,94.7,94.638,0.25]
[1643476881476,52.02677342,94.7,94.638,105.85]
[1643476881778,52.02677342,94.7,94.638,111.85]
[1643476881779,15.14,94.7,94.638,111.85]
[1643476883676,23.8884,94.731,94.638,111.85]
[1643476883876,17.88421329,94.73,94.64,105.6]
[1643476884077,6.0,94.721,94.651,105.6]
[1643476884278,0.25,94.72,94.652,0.25]
[1643476884476,24.3393,94.72,94.661,6.0]
[1643476884877,24.3393,94.72,94.662,0.25]
[1643476887078,24.3393,94.72,94.652,0.25]
[1643476888177,24.3393,94.72,94.651,105.6]
[1643476889179,24.3393,94.72,94.64,105.6]
[1643476889379,6.0,94.71,94.563,2.92129919]
[1643476889580,63.73933845,94.709,94.58,15.14]
[1643476889881,2.49584204,94.708,94.564,23.2713]
[1643476890085,189.23,94.69,94.565,24.1905]
[1643476890282,15.14,94.68,94.565,24.1905]
[1643476890481,2.49584204,94.679,94.565,24.1905]
[1643476890679,37.85424604,94.659,94.542,63.32]
[1643476890878,15.14,94.65,94.542,63.32]
[1643476891080,15.14,94.65,94.552,6.0]
[1643476891282,0.25,94.649,94.553,0.25]
[1643476891578,48.6481,94.649,94.553,105.6]
[1643476892080,48.6481,94.649,94.563,6.0]
[1643476892579,48.6481,94.649,94.564,6.0]
[1643476892778,48.6481,94.649,94.564,6.25]
[1643476892981,6.0,94.639,94.565,29.6405]
[1643476893181,6.0,94.639,94.574,6.0]
[1643476893381,34.50764099,94.638,94.575,0.25]
[1643476893579,24.2225,94.637,94.575,0.25]
[1643476893779,0.25,94.636,94.575,0.25]
[1643476894581,34.25764099,94.638,94.566,105.85]
[1643476894982,34.25764099,94.638,94.576,6.0]
[1643476895382,34.25764099,94.638,94.577,0.25]
[1643476895782,34.25764099,94.638,94.586,6.0]
[1643476895983,34.25764099,94.638,94.577,0.25]
[1643476896383,34.25764099,94.638,94.576,105.85]
[1643476896587,34.25764099,94.638,94.586,6.0]
[1643476896783,34.25764099,94.638,94.587,0.25]
[1643476900388,15.14,94.64,94.587,0.25]
[1643476900990,15.14,94.64,94.587,105.85]
[1643476901188,15.14,94.64,94.587,0.25]
[1643476901391,15.14,94.64,94.597,6.0]
[1643476901789,0.25,94.639,94.598,0.25]
[1643476902421,15.14,94.64,94.598,0.25]
[1643476902822,15.14,94.64,94.588,0.25]
[1643476903219,39.3847,94.64,94.58,6.0]
[1643476903421,39.3847,94.64,94.581,0.25]
[1643476903622,39.3847,94.64,94.571,0.25]
[1643476904420,0.25,94.639,94.571,0.25]
[1643476904719,0.25,94.639,94.573,6.0]
[1643476905122,0.25,94.639,94.574,0.25]
[1643476905519,39.3847,94.64,94.574,0.25]
[1643476906120,39.3847,94.64,94.574,6.25]
[1643476906321,39.3847,94.64,94.575,0.25]
[1643476906519,15.14,94.64,94.575,0.25]
[1643476907119,15.14,94.64,94.578,6.0]
[1643476907320,15.14,94.64,94.579,0.25]
[1643476916336,15.14,94.64,94.579,105.85]
[1643476916638,41.70758754,94.641,94.589,6.0]
[1643476916935,41.70758754,94.641,94.59,0.25]
[1643476918237,41.70758754,94.641,94.589,6.0]
[1643476918437,41.70758754,94.641,94.59,0.25]
[1643476921840,41.70758754,94.641,94.589,6.0]
[1643476922040,41.70758754,94.641,94.568,6.0]
[1643476922041,0.25,94.64,94.568,6.0]
[1643476922240,23.4388,94.64,94.568,6.0]
[1643476922641,23.4388,94.64,94.569,6.0]
[1643476923240,23.4388,94.64,94.57,0.25]
[1643476923743,6.0,94.63,94.57,0.25]
[1643476924141,23.7021,94.629,94.555,6.0]
[1643476925246,23.7021,94.629,94.556,0.25]
[1643476925644,2.95669142,94.628,94.556,0.25]
[1643476925850,0.25,94.627,94.556,0.25]
[1643476926045,0.25,94.627,94.535,6.0]
[1643476926248,43.60301467,94.626,94.536,0.25]
[1643476926644,0.25,94.625,94.536,0.25]
[1643476926845,15.14,94.62,94.536,0.25]
[1643476927248,0.25,94.619,94.536,0.25]
[1643476928447,0.25,94.619,94.535,6.0]
[1643476929850,0.25,94.619,94.536,0.25]
[1643476930547,6.0,94.61,94.536,0.25]
[1643476930747,37.81574362,94.608,94.536,0.25]
[1643476931952,37.81574362,94.608,94.536,23.1249]
[1643476932152,37.81574362,94.608,94.546,6.0]
[1643476932351,37.81574362,94.608,94.547,0.25]
[1643476933153,0.25,94.607,94.547,0.25]
[1643476934454,37.81574362,94.608,94.547,0.25]
[1643476935878,0.25,94.607,94.547,0.25]
[1643476936078,37.81574362,94.608,94.547,0.25]
[1643476936280,0.25,94.607,94.547,0.25]
[1643476938282,37.81574362,94.608,94.547,0.25]
[1643476938482,37.81574362,94.608,94.547,23.3317]
[1643476938986,37.81574362,94.608,94.557,6.0]
[1643476939684,37.81574362,94.608,94.547,0.25]
[1643476939881,37.81574362,94.608,94.536,0.25]
[1643476940485,24.3109,94.607,94.536,0.25]
[1643476940886,24.3109,94.607,94.536,6.25]
[1643476941184,24.3109,94.607,94.537,23.2327]
[1643476941389,24.3109,94.607,94.538,0.25]
[1643476941591,15.14,94.61,94.547,6.0]
[1643476941786,15.14,94.61,94.548,0.25]
[1643476942387,15.14,94.61,94.548,23.8962]
[1643476942585,35.08950497,94.609,94.558,6.0]
[1643476942787,35.08950497,94.609,94.559,0.25]
[1643476942992,35.08950497,94.609,94.548,23.8962]
[1643476949299,35.08950497,94.609,94.558,6.0]
[1643476949998,35.08950497,94.609,94.559,0.25]
[1643476950198,35.08950497,94.609,94.558,6.0]
[1643476950398,35.08950497,94.609,94.548,23.6462]
[1643476950598,35.08950497,94.609,94.558,6.0]
[1643476950997,23.5863,94.629,94.558,6.0]
[1643476951198,0.25,94.628,94.559,24.9809]
[1643476951597,0.25,94.628,94.569,6.0]
[1643476951804,0.25,94.628,94.57,0.25]
[1643476951997,33.52189773,94.628,94.57,0.25]
[1643476965434,33.52189773,94.628,94.56,0.25]
[1643476966435,33.52189773,94.628,94.569,6.0]
[1643476966835,33.52189773,94.628,94.57,0.25]
[1643476967936,33.52189773,94.628,94.56,0.25]
[1643476969641,33.52189773,94.628,94.569,6.0]
[1643476969848,33.52189773,94.628,94.57,23.1]
[1643476971451,15.865,94.65,94.57,23.1]
[1643476971452,1.47131167,94.635,94.57,23.1]
[1643476971654,1.47131167,94.635,94.58,6.0]
[1643476971854,1.47131167,94.657,94.581,86.6693]
[1643476972057,1.47131167,94.67,94.591,1.46947078]
[1643476972358,1.47131167,94.69,94.603,1.46947078]
[1643476972552,1.47131167,94.69,94.613,7.46947078]
[1643476972751,1.47131167,94.692,94.614,22.7791]
[1643476972952,1.47131167,94.692,94.615,105.6]
[1643476973158,1.47131167,94.691,94.624,6.0]
[1643476973360,1.47131167,94.692,94.625,31.0274]
[1643476973759,1.47131167,94.693,94.626,2.3288206]
[1643476973960,36.48378452,94.709,94.626,2.3288206]
[1643476974161,36.48378452,94.709,94.636,6.0]
[1643476974361,0.25,94.708,94.637,23.3696]
[1643476974559,0.25,94.708,94.647,6.0]
[1643476974761,0.25,94.708,94.648,0.25]
[1643476975160,36.48378452,94.709,94.648,0.25]
[1643476975360,36.48378452,94.709,94.648,6.25]
[1643476977262,0.25,94.708,94.648,6.25]
[1643476985877,0.25,94.708,94.649,24.4189]
[1643476986077,0.25,94.708,94.659,6.0]
[1643476986281,0.25,94.708,94.66,0.25]
[1643476988406,23.174,94.723,94.66,0.25]
[1643476988601,1.47131167,94.745,94.661,2.32836267]
[1643476988803,1.47131167,94.757,94.663,105.6]
[1643476989001,22.8626,94.759,94.673,6.0]
[1643476989201,22.8626,94.759,94.674,24.7743]
[1643476989403,35.75270831,94.758,94.674,25.0243]
[1643476989702,6.0,94.749,94.684,6.0]
[1643476989901,6.0,94.748,94.685,0.25]
[1643476990106,0.25,94.748,94.685,0.25]
[1643476990303,0.25,94.757,94.685,0.25]
[1643476990503,0.25,94.757,94.685,28.8375]
[1643476991103,0.25,94.757,94.685,22.8375]
[1643476998313,0.25,94.757,94.686,2.32836267]
[1643476998714,0.25,94.757,94.687,0.25]
[1643476998914,35.75270831,94.758,94.696,6.0]
[1643476999316,35.75270831,94.758,94.697,2.57836267]
[1643476999517,35.75270831,94.758,94.707,6.0]
[1643476999915,35.75270831,94.758,94.708,0.25]
[1643477000117,35.75270831,94.758,94.708,6.25]
[1643477000817,35.75270831,94.758,94.708,8.57836267]
[1643477003818,35.75270831,94.758,94.687,2.32836267]
[1643477004019,6.0,94.748,94.687,2.32836267]
[1643477004321,15.14,94.74,94.634,23.7961]
[1643477004620,15.14,94.74,94.635,22.6386]
[1643477004822,0.25,94.739,94.635,22.6386]
[1643477005022,0.25,94.739,94.661,6.0]
[1643477005627,0.25,94.739,94.635,22.6386]
[1643477005829,2.95669142,94.738,94.635,22.6386]
[1643477006026,1.47131167,94.736,94.645,6.0]
[1643477006227,1.47131167,94.736,94.635,22.6386]
[1643477006426,1.47131167,94.733,94.635,22.6386]
[1643477006628,15.14,94.73,94.635,22.6386]
[1643477006828,45.50999679,94.729,94.635,22.6386]
[1643477007353,23.9733,94.728,94.635,22.6386]
[1643477007558,1.47131167,94.723,94.604,1.46947078]
[1643477007764,1.47131167,94.723,94.578,2.92129919]
[1643477007765,1.47131167,94.7,94.581,1.46947078]
[1643477007955,1.47131167,94.685,94.575,5.51887369]
[1643477008155,1.47131167,94.681,94.563,1.46947078]
[1643477008355,15.14,94.67,94.563,1.46947078]
[1643477008555,45.60524616,94.669,94.558,1.46947078]
[1643477008756,15.863,94.66,94.554,1.46947078]
[1643477008957,31.003,94.66,94.552,1.46947078]
[1643477009157,0.25,94.659,94.564,6.0]
[1643477009356,0.25,94.659,94.553,1.46947078]
[1643477009557,0.25,94.659,94.563,6.0]
[1643477009857,0.25,94.659,94.546,6.0]
[1643477010162,0.25,94.659,94.551,6.0]
[1643477010363,0.25,94.659,94.546,6.0]
[1643477010562,0.25,94.659,94.536,105.6]
[1643477010563,6.0,94.65,94.547,30.6499]
[1643477010757,0.25,94.649,94.548,0.25]
[1643477010957,6.0,94.65,94.548,171.49836267]
[1643477011160,31.003,94.66,94.563,112.9]
[1643477011357,0.25,94.659,94.564,105.85]
[1643477011558,0.25,94.659,94.575,105.6]
[1643477011760,0.25,94.659,94.576,0.25]
[1643477011958,0.25,94.659,94.585,6.0]
[1643477012458,0.25,94.659,94.586,105.85]
[1643477013065,0.25,94.659,94.596,6.0]
[1643477013261,0.25,94.659,94.597,0.25]
[1643477014260,14.89,94.66,94.597,0.25]
[1643477014460,47.5422,94.699,94.598,2.32836267]
[1643477014659,47.5422,94.699,94.598,8.32836267]
[1643477014859,47.5422,94.699,94.599,0.25]
[1643477015062,47.5422,94.699,94.602,6.0]
[1643477015260,36.68612746,94.698,94.603,0.25]
[1643477015462,36.68612746,94.698,94.609,6.0]
[1643477015868,36.68612746,94.698,94.61,0.25]
[1643477016059,36.68612746,94.698,94.614,6.0]
[1643477016259,36.68612746,94.698,94.615,0.25]
[1643477016459,36.68612746,94.698,94.62,6.0]
[1643477016859,0.25,94.697,94.621,0.25]
[1643477017864,0.25,94.697,94.604,0.25]
[1643477018263,0.25,94.697,94.602,6.0]
[1643477018264,6.0,94.688,94.603,0.25]
[1643477018667,0.25,94.687,94.603,0.25]
[1643477019465,0.25,94.687,94.593,6.0]
[1643477019867,0.25,94.688,94.594,0.25]
[1643477020069,24.0232,94.689,94.594,0.25]
[1643477020267,0.25,94.688,94.594,0.25]
[1643477022277,24.0232,94.689,94.594,0.25]
[1643477023071,24.0232,94.689,94.595,2.31789945]
[1643477023274,0.25,94.688,94.596,0.25]
[1643477023473,0.25,94.688,94.594,0.25]
[1643477025273,24.0232,94.689,94.595,2.31789945]
[1643477025674,24.0232,94.689,94.606,105.6]
[1643477025876,24.0232,94.689,94.607,0.25]
[1643477026073,15.14,94.69,94.616,6.0]
[1643477026272,15.14,94.69,94.617,0.25]
[1643477026273,0.25,94.689,94.617,0.25]
[1643477026475,0.25,94.689,94.617,6.25]
[1643477026674,0.25,94.689,94.617,0.25]
[1643477026873,0.25,94.689,94.627,6.0]
[1643477027273,0.25,94.689,94.628,0.25]
[1643477027678,15.14,94.69,94.628,0.25]
[1643477028378,15.14,94.69,94.619,0.25]
[1643477029778,15.14,94.71,94.619,108.16789945]
[1643477029984,1.47131167,94.738,94.62,63.32]
[1643477030178,46.5535,94.739,94.629,6.0]
[1643477030379,46.5535,94.739,94.63,30.2741]
[1643477030579,46.5535,94.739,94.631,6.0]
[1643477030779,35.17275282,94.738,94.632,105.85]
[1643477030984,35.17275282,94.738,94.642,6.0]
[1643477031380,35.17275282,94.738,94.644,6.0]
[1643477031878,35.17275282,94.738,94.645,0.25]
[1643477032083,35.17275282,94.738,94.645,105.85]
[1643477032481,35.17275282,94.738,94.655,6.0]
[1643477032880,35.17275282,94.738,94.656,0.25]
[1643477033078,35.17275282,94.738,94.656,6.25]
[1643477033903,35.17275282,94.738,94.657,105.6]
[1643477034104,35.17275282,94.738,94.667,6.0]
[1643477034302,35.17275282,94.738,94.668,0.25]
[1643477034502,35.17275282,94.738,94.656,6.25]
[1643477035004,35.17275282,94.738,94.657,6.0]
[1643477035204,35.17275282,94.738,94.666,6.0]
[1643477035403,35.17275282,94.738,94.667,0.25]
[1643477036605,35.17275282,94.738,94.658,0.25]
[1643477038005,35.17275282,94.738,94.667,6.0]
[1643477038406,35.17275282,94.738,94.668,0.25]
[1643477039410,35.17275282,94.738,94.658,0.25]
[1643477040507,35.17275282,94.738,94.658,23.0911]
[1643477040907,35.17275282,94.738,94.668,6.0]
[1643477041409,35.17275282,94.738,94.669,0.25]
[1643477042910,35.17275282,94.738,94.668,6.0]
[1643477044311,35.17275282,94.738,94.669,0.25]
[1643477044510,6.0,94.728,94.669,0.25]
[1643477044911,0.25,94.727,94.669,0.25]
[1643477046815,0.25,94.737,94.669,0.25]
[1643477051425,0.25,94.737,94.669,105.85]
[1643477051622,0.25,94.737,94.679,6.0]
[1643477051821,0.25,94.737,94.68,0.25]
[1643477055127,0.25,94.737,94.668,6.0]
[1643477055426,0.25,94.737,94.669,0.25]
[1643477055627,36.14406449,94.738,94.669,0.25]
[1643477055825,34.67275282,94.738,94.669,0.25]
[1643477057227,0.25,94.737,94.669,0.25]
[1643477057429,1.72131167,94.737,94.669,6.25]
[1643477057629,1.47131167,94.736,94.669,6.25]
[1643477057829,1.72131167,94.737,94.669,6.25]
[1643477058230,1.72131167,94.737,94.67,105.6]
[1643477058629,1.72131167,94.737,94.68,6.0]
[1643477058829,34.67275282,94.738,94.681,0.25]
[1643477059028,34.67275282,94.738,94.681,6.25]
[1643477059429,36.14406449,94.738,94.681,6.25]
[1643477059630,34.67275282,94.738,94.681,6.25]
[1643477068368,34.67275282,94.738,94.671,23.2262]
[1643477068570,6.0,94.728,94.656,1.46947078]
[1643477068771,22.9822,94.727,94.648,1.46947078]
[1643477068970,46.3379,94.727,94.641,22.8014]
[1643477069174,41.98871842,94.719,94.641,22.8014]
[1643477069573,41.98871842,94.719,94.651,6.0]
[1643477069970,41.98871842,94.719,94.652,0.25]
[1643477070370,41.98871842,94.719,94.652,25.1561]
[1643477070977,41.98871842,94.719,94.652,0.25]
[1643477071370,41.98871842,94.719,94.645,0.25]
[1643477071771,41.98871842,94.719,94.644,0.25]
[1643477071974,41.98871842,94.719,94.651,6.0]
[1643477072370,41.98871842,94.719,94.652,23.5553]
[1643477072572,41.98871842,94.719,94.662,6.0]
[1643477072772,41.98871842,94.719,94.663,0.25]
[1643477079577,6.0,94.709,94.653,0.25]
[1643477080379,41.98871842,94.719,94.662,6.0]
[1643477080780,41.98871842,94.719,94.663,0.25]
[1643477083889,41.98871842,94.719,94.663,6.25]
[1643477087516,41.98871842,94.719,94.664,2.29899807]
[1643477087818,41.98871842,94.719,94.665,0.25]
[1643477088118,41.98871842,94.719,94.674,6.0]
[1643477088315,41.98871842,94.719,94.675,0.25]
[1643477088515,41.98871842,94.719,94.676,6.0]
[1643477088714,41.98871842,94.719,94.675,2.54899807]
[1643477088917,46.3379,94.727,94.685,6.0]
[1643477089215,1.47131167,94.743,94.686,8.29899807]
[1643477089415,1.47131167,94.746,94.686,8.54899807]
[1643477089617,1.47131167,94.749,94.687,2.29899807]
[1643477089824,1.47131167,94.751,94.687,2.54899807]
[1643477090017,39.88962084,94.75,94.697,6.0]
[1643477090419,39.88962084,94.75,94.698,0.25]
[1643477091820,39.88962084,94.75,94.683,0.25]
[1643477092219,39.88962084,94.75,94.684,2.29899807]
[1643477092420,41.36093251,94.75,94.684,2.29899807]
[1643477092720,41.36093251,94.75,94.694,6.0]
[1643477093022,39.88962084,94.75,94.694,6.0]
[1643477093219,39.88962084,94.75,94.695,0.25]
[1643477094620,39.88962084,94.75,94.695,2.54899807]
[1643477095021,39.88962084,94.75,94.705,6.0]
[1643477095422,39.88962084,94.75,94.706,0.25]
[1643477096623,39.88962084,94.75,94.692,0.25]
[1643477098624,39.88962084,94.75,94.692,2.54899807]
[1643477099023,39.88962084,94.75,94.702,6.0]
[1643477099424,39.88962084,94.75,94.703,0.25]
[1643477100527,39.88962084,94.75,94.697,0.25]
[1643477100927,39.88962084,94.75,94.697,2.54899807]
[1643477101227,39.88962084,94.75,94.707,6.0]
[1643477101727,39.88962084,94.75,94.708,6.25]
[1643477102928,39.88962084,94.75,94.696,6.0]
[1643477103128,39.88962084,94.75,94.695,6.0]
[1643477104130,16.61131167,94.76,94.695,6.0]
[1643477104332,22.7775,94.759,94.696,26.70779807]
[1643477104530,22.7775,94.759,94.706,6.0]
[1643477104933,15.14,94.76,94.707,0.25]
[1643477105132,15.14,94.76,94.707,6.25]
[1643477105337,42.05474383,94.759,94.707,6.25]
[1643477106132,1.47131167,94.758,94.707,6.25]
[1643477106332,1.47131167,94.758,94.707,0.25]
[1643477106737,1.72131167,94.757,94.698,0.25]
[1643477107334,0.25,94.757,94.698,0.25]
[1643477107738,0.25,94.757,94.699,2.29899807]
[1643477107942,23.6999,94.757,94.699,2.29899807]
[1643477108139,0.25,94.757,94.7,0.25]
[1643477108338,0.25,94.757,94.709,6.0]
[1643477108738,0.25,94.757,94.71,0.25]
[1643477109038,1.47131167,94.758,94.71,0.25]
[1643477109241,0.25,94.757,94.71,0.25]
[1643477109540,24.0328,94.757,94.71,0.25]
[1643477109742,23.7828,94.757,94.71,0.25]
[1643477109942,23.7828,94.757,94.7,0.25]
[1643477111744,23.7828,94.757,94.665,1.46947078]
[1643477111943,1.47131167,94.736,94.642,1.46947078]
[1643477112143,15.14,94.73,94.641,23.4558]
[1643477112343,22.8545,94.729,94.641,23.4558]
[1643477112547,24.32581167,94.729,94.641,23.4558]
[1643477112743,1.47131167,94.728,94.641,23.4558]
[1643477113245,24.32581167,94.729,94.651,6.0]
[1643477113447,1.47131167,94.728,94.651,6.0]
[1643477113648,1.47131167,94.728,94.652,0.25]
[1643477113846,22.8545,94.729,94.652,0.25]
[1643477115649,37.41021091,94.718,94.652,0.25]
[1643477116048,37.41021091,94.718,94.656,6.0]
[1643477116250,37.41021091,94.718,94.657,0.25]
[1643477116649,37.41021091,94.718,94.657,6.25]
[1643477116850,37.41021091,94.718,94.657,0.25]
[1643477117048,24.6797,94.717,94.658,23.7391]
[1643477117248,24.6797,94.717,94.659,0.25]
[1643477117449,24.6797,94.717,94.668,6.0]
[1643477117850,24.6797,94.717,94.669,0.25]
[1643477118451,24.7741,94.734,94.669,0.25]
[1643477118650,24.7741,94.734,94.669,24.0606]
[1643477119050,24.7741,94.734,94.669,0.25]
[1643477119248,24.7741,94.734,94.655,6.0]
[1643477119249,23.9031,94.733,94.67,24.5893]
[1643477119677,37.21827477,94.732,94.671,0.25]
[1643477119877,6.0,94.723,94.671,0.25]
[1643477120079,37.21827477,94.732,94.671,0.25]
[1643477120578,15.14,94.75,94.68,6.0]
[1643477120779,1.47131167,94.751,94.681,49.6808]
[1643477120981,1.47131167,94.76,94.681,49.6808]
[1643477121181,1.47131167,94.776,94.691,6.0]
[1643477121379,1.47131167,94.776,94.692,0.25]
[1643477121579,32.91284497,94.787,94.702,0.31101478]
[1643477121580,1.47131167,94.785,94.702,0.31101478]
[1643477121780,32.91284497,94.787,94.702,0.31101478]
[1643477121977,32.91284497,94.787,94.702,12.23889233]
[1643477122178,32.91284497,94.787,94.703,18.13679297]
[1643477122382,1.47131167,94.779,94.703,2.29899807]
[1643477122580,1.47131167,94.775,94.695,24.9519]
[1643477122779,0.25,94.778,94.705,6.0]
[1643477123278,1.72131167,94.778,94.705,6.0]
[1643477123478,1.72131167,94.778,94.706,24.8953]
[1643477123684,1.47131167,94.778,94.706,24.8953]
[1643477123881,1.47131167,94.778,94.716,6.0]
[1643477124077,1.47131167,94.776,94.716,6.0]
[1643477124279,1.47131167,94.777,94.716,6.0]
[1643477124679,1.47131167,94.779,94.716,6.0]
[1643477124879,1.47131167,94.78,94.716,6.0]
[1643477125178,1.47131167,94.783,94.717,0.25]
[1643477125379,1.47131167,94.783,94.717,26.85839807]
[1643477125578,1.47131167,94.783,94.727,6.0]
[1643477125779,1.47131167,94.782,94.728,0.25]
[1643477125978,1.47131167,94.785,94.728,0.25]
[1643477126178,25.24501167,94.786,94.728,0.25]
[1643477126380,23.7737,94.786,94.728,0.25]
[1643477126979,23.7737,94.786,94.714,0.25]
[1643477127387,23.7737,94.786,94.715,2.29899807]
[1643477127589,23.7737,94.786,94.725,6.0]
[1643477127787,23.7737,94.786,94.726,0.25]
[1643477127987,1.47131167,94.788,94.726,105.85]
[1643477128188,1.47131167,94.788,94.727,23.6571]
[1643477128391,1.47131167,94.798,94.736,6.0]
[1643477128591,1.47131167,94.799,94.737,6.0]
[1643477128791,1.47131167,94.799,94.738,23.9071]
[1643477128996,42.42915936,94.798,94.748,6.0]
[1643477129192,42.42915936,94.798,94.749,24.6227]
[1643477129391,42.42915936,94.798,94.749,24.8727]
[1643477129591,42.42915936,94.798,94.759,6.0]
[1643477129791,42.42915936,94.798,94.76,0.25]
[1643477129992,42.42915936,94.798,94.749,24.8727]
[1643477130695,42.42915936,94.798,94.759,6.0]
[1643477130998,42.42915936,94.798,94.76,0.25]
[1643477131194,1.47131167,94.81,94.76,0.25]
[1643477131395,1.47131167,94.816,94.76,0.25]
[1643477131794,24.7775,94.819,94.76,0.25]
[1643477132200,44.20295084,94.818,94.76,0.25]
[1643477133700,1.47131167,94.824,94.76,0.25]
[1643477133901,16.61131167,94.83,94.76,24.0149]
[1643477134102,16.61131167,94.83,94.77,6.0]
[1643477134402,1.47131167,94.833,94.771,0.25]
[1643477134601,42.79853283,94.831,94.771,0.25]
[1643477135101,42.79853283,94.831,94.771,23.1743]
[1643477135505,42.79853283,94.831,94.781,6.0]
[1643477135903,42.79853283,94.831,94.782,0.25]
[1643477137104,42.79853283,94.831,94.783,2.29899807]
[1643477137304,1.47131167,94.853,94.784,0.25]
[1643477137505,22.8988,94.859,94.793,6.0]
[1643477137906,22.8988,94.859,94.794,6.25]
[1643477138106,1.47131167,94.864,94.804,6.0]
[1643477138343,1.47131167,94.877,94.805,22.8765]
[1643477138542,23.0216,94.898,94.815,6.0]
[1643477138543,1.47131167,94.886,94.815,6.0]
[1643477138743,1.47131167,94.887,94.816,22.6265]
[1643477138943,23.0216,94.898,94.816,28.8765]
[1643477138944,1.47131167,94.886,94.816,28.8765]
[1643477139145,1.47131167,94.887,94.826,6.0]
[1643477139353,40.94611057,94.886,94.817,2.29899807]
[1643477139545,40.94611057,94.886,94.784,18.13679297]
[1643477139546,105.6,94.875,94.804,0.00899807]
[1643477139745,1.47131167,94.862,94.713,24.9785]
[1643477139945,189.23,94.87,94.713,24.9785]
[1643477139946,1.47131167,94.845,94.713,24.9785]